[Event "January 9 Late 2024"]
[Site "https://www.chess.com"]
[Date "2024.01.09"]
[Round "8"]
[White "Sowa, Ryan"]
[Black "Hejazipour, Mitra"]
[Result "1-0"]
[Board "76"]
[TimeControl "180+1"]
[WhiteFideId "30901693"]
[BlackFideId "12505951"]
[WhiteElo "2593"]
[BlackElo "2483"]
[WhiteTeam "USA"]
[BlackTeam "FRA"]
[WhiteClock "0:00:58"]
[BlackClock "0:00:50"]

1. Nf3 {[%clk 0:03:00]}  Nf6 {[%clk 0:02:57]} 2. b3 {[%clk 0:03:01]}  g6 {[%clk 0:02:56]} 3. Bb2 {[%clk 0:03:02]}  Bg7 {[%clk 0:02:56]} 4. g3 {[%clk 0:03:03]}  d5 {[%clk 0:02:56]} 5. Bg2 {[%clk 0:03:03]}  O-O {[%clk 0:02:55]} 6. c4 {[%clk 0:03:03]}  c5 {[%clk 0:02:53]} 7. cxd5 {[%clk 0:03:03]}  Nxd5 {[%clk 0:02:53]} 8. Bxg7 {[%clk 0:03:02]}  Kxg7 {[%clk 0:02:52]} 9. O-O {[%clk 0:03:02]}  Nc6 {[%clk 0:02:52]} 10. Qc1 {[%clk 0:03:03]}  Qd6 {[%clk 0:02:49]} 11. Nc3 {[%clk 0:03:01]}  b6 {[%clk 0:02:46]} 12. Nxd5 {[%clk 0:02:53]}  Qxd5 {[%clk 0:02:46]} 13. Qc3+ {[%clk 0:02:29]}  f6 {[%clk 0:02:44]} 14. Ne5 {[%clk 0:02:05]}  Qxe5 {[%clk 0:02:42]} 15. Qxe5 {[%clk 0:02:04]}  fxe5 {[%clk 0:02:42]} 16. Bxc6 {[%clk 0:02:04]}  Rb8 {[%clk 0:02:42]} 17. d3 {[%clk 0:01:59]}  Bh3 {[%clk 0:02:38]} 18. Rfc1 {[%clk 0:01:58]}  Rf6 {[%clk 0:02:36]} 19. Be4 {[%clk 0:01:58]}  Rbf8 {[%clk 0:02:34]} 20. f3 {[%clk 0:01:58]}  Bf5 {[%clk 0:02:33]} 21. Rc4 {[%clk 0:01:58]}  Be6 {[%clk 0:02:31]} 22. Rc3 {[%clk 0:01:58]}  Bf5 {[%clk 0:02:31]} 23. Rb1 {[%clk 0:01:47]}  Bxe4 {[%clk 0:02:29]} 24. dxe4 {[%clk 0:01:47]}  Rd6 {[%clk 0:02:28]} 25. Rb2 {[%clk 0:01:46]}  Rfd8 {[%clk 0:02:27]} 26. Kf2 {[%clk 0:01:47]}  Rd2 {[%clk 0:02:23]} 27. Rcc2 {[%clk 0:01:47]}  Rd1 {[%clk 0:02:22]} 28. b4 {[%clk 0:01:46]}  cxb4 {[%clk 0:02:14]} 29. Rxb4 {[%clk 0:01:47]}  R1d2 {[%clk 0:02:12]} 30. Rbb2 {[%clk 0:01:41]}  R2d7 {[%clk 0:02:11]} 31. Rc6 {[%clk 0:01:40]}  Rd6 {[%clk 0:02:06]} 32. Rc7 {[%clk 0:01:38]}  R8d7 {[%clk 0:02:06]} 33. Rbc2 {[%clk 0:01:39]}  Kf6 {[%clk 0:02:03]} 34. h4 {[%clk 0:01:36]}  Ke6 {[%clk 0:02:02]} 35. Ke3 {[%clk 0:01:33]}  a6 {[%clk 0:01:58]} 36. Rc8 {[%clk 0:01:33]}  Rd8 {[%clk 0:01:56]} 37. R8c7 {[%clk 0:01:31]}  b5 {[%clk 0:01:52]} 38. Ra7 {[%clk 0:01:31]}  R8d7 {[%clk 0:01:51]} 39. Rcc7 {[%clk 0:01:28]}  Rxc7 {[%clk 0:01:49]} 40. Rxc7 {[%clk 0:01:29]}  Kf7 {[%clk 0:01:43]} 41. Ra7 {[%clk 0:01:27]}  Ke6 {[%clk 0:01:41]} 42. Ra8 {[%clk 0:01:27]}  Rc6 {[%clk 0:01:39]} 43. g4 {[%clk 0:01:23]}  Kd6 {[%clk 0:01:37]} 44. Kf2 {[%clk 0:01:20]}  Kc5 {[%clk 0:01:36]} 45. Rh8 {[%clk 0:01:17]}  Kb4 {[%clk 0:01:34]} 46. Rxh7 {[%clk 0:01:17]}  Re6 {[%clk 0:01:33]} 47. Rh6 {[%clk 0:01:14]}  Ka3 {[%clk 0:01:14]} 48. h5 {[%clk 0:01:14]}  Rd6 {[%clk 0:01:10]} 49. Rxg6 {[%clk 0:01:09]}  e6 {[%clk 0:01:10]} 50. h6 {[%clk 0:01:08]}  Rd8 {[%clk 0:01:08]} 51. h7 {[%clk 0:01:06]}  Rh8 {[%clk 0:01:08]} 52. Rh6 {[%clk 0:01:06]}  Kxa2 {[%clk 0:01:07]} 53. g5 {[%clk 0:01:07]}  b4 {[%clk 0:01:08]} 54. g6 {[%clk 0:01:07]}  b3 {[%clk 0:01:08]} 55. g7 {[%clk 0:00:57]}  Rxh7 {[%clk 0:00:54]} 56. Rxh7 {[%clk 0:00:57]}  b2 {[%clk 0:00:50]} 57. Rh1 {[%clk 0:00:58]} 1-0

[Event "January 9 Late 2024"]
[Site "https://www.chess.com"]
[Date "2024.01.09"]
[Round "8"]
[White "Golubev, Mikhail"]
[Black "Li, Tedric"]
[Result "1-0"]
[Board "77"]
[TimeControl "180+1"]
[WhiteFideId "14100983"]
[BlackFideId "3242897"]
[WhiteElo "2589"]
[BlackElo "2479"]
[WhiteTeam "UKR"]
[BlackTeam "AUS"]
[WhiteClock "0:00:12"]
[BlackClock "0:00:46"]

1. e4 {[%clk 0:03:00]}  c6 {[%clk 0:03:00]} 2. Nf3 {[%clk 0:02:57]}  d5 {[%clk 0:03:01]} 3. Nc3 {[%clk 0:02:57]}  Bg4 {[%clk 0:03:01]} 4. h3 {[%clk 0:02:57]}  Bxf3 {[%clk 0:03:01]} 5. Qxf3 {[%clk 0:02:57]}  Nf6 {[%clk 0:03:02]} 6. g3 {[%clk 0:02:49]}  e6 {[%clk 0:03:01]} 7. Bg2 {[%clk 0:02:49]}  Bb4 {[%clk 0:03:02]} 8. e5 {[%clk 0:02:37]}  Nfd7 {[%clk 0:03:00]} 9. Qe2 {[%clk 0:02:35]}  O-O {[%clk 0:02:56]} 10. a3 {[%clk 0:02:31]}  Be7 {[%clk 0:02:54]} 11. d4 {[%clk 0:02:22]}  c5 {[%clk 0:02:54]} 12. dxc5 {[%clk 0:02:20]}  Nxc5 {[%clk 0:02:51]} 13. O-O {[%clk 0:02:18]}  Nc6 {[%clk 0:02:51]} 14. Bf4 {[%clk 0:02:09]}  Nd7 {[%clk 0:02:47]} 15. h4 {[%clk 0:02:01]}  a6 {[%clk 0:02:44]} 16. Rad1 {[%clk 0:01:59]}  b5 {[%clk 0:02:42]} 17. Nxd5 {[%clk 0:01:55]}  exd5 {[%clk 0:02:36]} 18. Bxd5 {[%clk 0:01:52]}  Qb6 {[%clk 0:02:31]} 19. e6 {[%clk 0:01:44]}  Nf6 {[%clk 0:02:09]} 20. exf7+ {[%clk 0:01:44]}  Kh8 {[%clk 0:02:09]} 21. Bxc6 {[%clk 0:01:42]}  Qxc6 {[%clk 0:02:10]} 22. Qxe7 {[%clk 0:01:41]}  Qxc2 {[%clk 0:02:03]} 23. Be5 {[%clk 0:01:38]}  Ng4 {[%clk 0:01:58]} 24. Bc3 {[%clk 0:01:14]}  Qf5 {[%clk 0:01:55]} 25. Rd7 {[%clk 0:01:12]}  Rac8 {[%clk 0:01:40]} 26. Qg5 {[%clk 0:01:00]}  Qg6 {[%clk 0:01:10]} 27. Qxg6 {[%clk 0:00:51]}  hxg6 {[%clk 0:01:11]} 28. Re1 {[%clk 0:00:51]}  Kh7 {[%clk 0:01:05]} 29. Re6 {[%clk 0:00:45]}  a5 {[%clk 0:00:56]} 30. Rb6 {[%clk 0:00:37]}  b4 {[%clk 0:00:54]} 31. axb4 {[%clk 0:00:36]}  axb4 {[%clk 0:00:55]} 32. Rxb4 {[%clk 0:00:26]}  Nf6 {[%clk 0:00:48]} 33. Bxf6 {[%clk 0:00:24]}  gxf6 {[%clk 0:00:49]} 34. Rbb7 {[%clk 0:00:22]}  Kg7 {[%clk 0:00:49]} 35. Kg2 {[%clk 0:00:22]}  Rc4 {[%clk 0:00:48]} 36. b4 {[%clk 0:00:21]}  Rc3 {[%clk 0:00:48]} 37. b5 {[%clk 0:00:21]}  Rb3 {[%clk 0:00:48]} 38. Re7 {[%clk 0:00:20]}  Rb2 {[%clk 0:00:45]} 39. g4 {[%clk 0:00:15]}  Rb4 {[%clk 0:00:45]} 40. Kg3 {[%clk 0:00:15]}  Rb3+ {[%clk 0:00:45]} 41. f3 {[%clk 0:00:15]}  Rb4 {[%clk 0:00:44]} 42. g5 {[%clk 0:00:15]}  fxg5 {[%clk 0:00:44]} 43. hxg5 {[%clk 0:00:14]}  Rb3 {[%clk 0:00:44]} 44. Kg4 {[%clk 0:00:13]}  Rb4+ {[%clk 0:00:45]} 45. f4 {[%clk 0:00:13]}  Rc4 {[%clk 0:00:45]} 46. Re8 {[%clk 0:00:12]}  Rxf7 {[%clk 0:00:45]} 47. Ree7 {[%clk 0:00:12]}  Rxe7 {[%clk 0:00:44]} 48. Rxe7+ {[%clk 0:00:11]}  Kf8 {[%clk 0:00:45]} 49. Re6 {[%clk 0:00:11]}  Kf7 {[%clk 0:00:46]} 50. Rf6+ {[%clk 0:00:11]}  Kg7 {[%clk 0:00:46]} 51. b6 {[%clk 0:00:11]}  Rb4 {[%clk 0:00:47]} 52. Rc6 {[%clk 0:00:11]}  Rb3 {[%clk 0:00:47]} 53. Rc7+ {[%clk 0:00:11]}  Kf8 {[%clk 0:00:39]} 54. b7 {[%clk 0:00:12]}  Ke8 {[%clk 0:00:40]} 55. Rc8+ {[%clk 0:00:12]}  Kd7 {[%clk 0:00:41]} 56. b8=Q {[%clk 0:00:12]}  Rxb8 {[%clk 0:00:41]} 57. Rxb8 {[%clk 0:00:12]}  Ke7 {[%clk 0:00:42]} 58. Rb6 {[%clk 0:00:12]}  Kf7 {[%clk 0:00:43]} 59. Rf6+ {[%clk 0:00:12]}  Kg7 {[%clk 0:00:44]} 60. f5 {[%clk 0:00:12]}  gxf5+ {[%clk 0:00:44]} 61. Kh5 {[%clk 0:00:12]}  Kh7 {[%clk 0:00:44]} 62. Rxf5 {[%clk 0:00:12]}  Kg7 {[%clk 0:00:45]} 63. g6 {[%clk 0:00:12]}  Kg8 {[%clk 0:00:46]} 64. Kh6 {[%clk 0:00:12]}  Kh8 {[%clk 0:00:46]} 65. Rf8# {[%clk 0:00:12]} 1-0

[Event "January 9 Late 2024"]
[Site "https://www.chess.com"]
[Date "2024.01.09"]
[Round "8"]
[White "Garrido Diaz, Jose Antonio"]
[Black "Baltag, Iulian"]
[Result "0-1"]
[Board "78"]
[TimeControl "180+1"]
[WhiteFideId "24516252"]
[BlackFideId "13901419"]
[WhiteElo "2470"]
[BlackElo "2588"]
[WhiteTeam "ESP"]
[BlackTeam "MDA"]
[WhiteClock "0:01:18"]
[BlackClock "0:01:00"]

1. d4 {[%clk 0:03:00]}  d5 {[%clk 0:02:59]} 2. c4 {[%clk 0:02:59]}  e5 {[%clk 0:02:58]} 3. dxe5 {[%clk 0:02:59]}  d4 {[%clk 0:02:58]} 4. Nf3 {[%clk 0:02:58]}  Nc6 {[%clk 0:02:59]} 5. e3 {[%clk 0:02:57]}  Bb4+ {[%clk 0:02:58]} 6. Bd2 {[%clk 0:02:57]}  dxe3 {[%clk 0:02:58]} 7. fxe3 {[%clk 0:02:55]}  Bc5 {[%clk 0:02:52]} 8. Nc3 {[%clk 0:02:53]}  Bf5 {[%clk 0:02:40]} 9. Be2 {[%clk 0:02:38]}  Nge7 {[%clk 0:02:38]} 10. O-O {[%clk 0:02:38]}  O-O {[%clk 0:02:37]} 11. Kh1 {[%clk 0:02:36]}  Bd3 {[%clk 0:02:27]} 12. Bxd3 {[%clk 0:02:29]}  Qxd3 {[%clk 0:02:27]} 13. Qe2 {[%clk 0:02:30]}  Rad8 {[%clk 0:02:25]} 14. Rad1 {[%clk 0:02:26]}  Ng6 {[%clk 0:02:18]} 15. Qxd3 {[%clk 0:02:19]}  Rxd3 {[%clk 0:02:16]} 16. Ne4 {[%clk 0:02:20]}  Bxe3 {[%clk 0:02:07]} 17. Ne1 {[%clk 0:02:10]}  Rd4 {[%clk 0:01:58]} 18. Bxe3 {[%clk 0:02:05]}  Rxd1 {[%clk 0:01:57]} 19. Nc3 {[%clk 0:01:59]}  Rdd8 {[%clk 0:01:36]} 20. Nd5 {[%clk 0:01:55]}  Ncxe5 {[%clk 0:01:33]} 21. b3 {[%clk 0:01:51]}  c6 {[%clk 0:01:31]} 22. Nc3 {[%clk 0:01:49]}  a6 {[%clk 0:01:25]} 23. Nc2 {[%clk 0:01:44]}  Rfe8 {[%clk 0:01:22]} 24. Na4 {[%clk 0:01:32]}  Ng4 {[%clk 0:01:17]} 25. Bb6 {[%clk 0:01:28]}  Rd2 {[%clk 0:01:15]} 26. Nd4 {[%clk 0:01:28]}  Rf2 {[%clk 0:01:03]} 27. Rxf2 {[%clk 0:01:18]}  Re1+ {[%clk 0:01:00]} 0-1

[Event "January 9 Late 2024"]
[Site "https://www.chess.com"]
[Date "2024.01.10"]
[Round "8"]
[White "Rogov, Matfey"]
[Black "Hoeffer, David"]
[Result "0-1"]
[Board "80"]
[TimeControl "180+1"]
[WhiteFideId "44191308"]
[BlackFideId "24606766"]
[WhiteElo "2583"]
[BlackElo "2466"]
[WhiteTeam "RUS"]
[BlackTeam "GER"]
[WhiteClock "0:00:03"]
[BlackClock "0:00:55"]

1. e4 {[%clk 0:02:59]}  c5 {[%clk 0:02:59]} 2. Nc3 {[%clk 0:02:52]}  d6 {[%clk 0:02:56]} 3. f4 {[%clk 0:02:52]}  Nc6 {[%clk 0:02:51]} 4. Nf3 {[%clk 0:02:53]}  Bg4 {[%clk 0:02:51]} 5. Bc4 {[%clk 0:02:51]}  e6 {[%clk 0:02:49]} 6. O-O {[%clk 0:02:50]}  Nf6 {[%clk 0:02:49]} 7. d3 {[%clk 0:02:50]}  Nd4 {[%clk 0:02:48]} 8. e5 {[%clk 0:02:43]}  d5 {[%clk 0:02:43]} 9. Bb3 {[%clk 0:02:07]}  Nd7 {[%clk 0:02:26]} 10. Kh1 {[%clk 0:01:32]}  h5 {[%clk 0:02:16]} 11. Qe1 {[%clk 0:01:21]}  Bxf3 {[%clk 0:01:56]} 12. gxf3 {[%clk 0:01:22]}  h4 {[%clk 0:01:52]} 13. f5 {[%clk 0:00:35]}  Nxf5 {[%clk 0:01:51]} 14. Bxd5 {[%clk 0:00:19]}  exd5 {[%clk 0:01:45]} 15. e6 {[%clk 0:00:20]}  Nb6 {[%clk 0:01:31]} 16. Qe5 {[%clk 0:00:14]}  Qf6 {[%clk 0:01:24]} 17. Qc7 {[%clk 0:00:07]}  fxe6 {[%clk 0:01:10]} 18. Bf4 {[%clk 0:00:05]}  Ng3+ {[%clk 0:00:55]} 19. hxg3 {[%clk 0:00:04]}  hxg3+ {[%clk 0:00:56]} 20. Kg2 {[%clk 0:00:03]}  Rh2+ {[%clk 0:00:55]} 21. Kg1 {[%clk 0:00:04]}  Qd4+ {[%clk 0:00:55]} 22. Rf2 {[%clk 0:00:03]}  Qxf2# {[%clk 0:00:55]} 0-1

[Event "January 9 Late 2024"]
[Site "https://www.chess.com"]
[Date "2024.01.09"]
[Round "8"]
[White "Tulchynskyi, Feliks"]
[Black "Joie, Sebastien"]
[Result "0-1"]
[Board "81"]
[TimeControl "180+1"]
[WhiteFideId "34127895"]
[BlackFideId "650420"]
[WhiteElo "2576"]
[BlackElo "2456"]
[WhiteTeam "UKR"]
[BlackTeam "FRA"]
[WhiteClock "0:00:10"]
[BlackClock "0:00:12"]

1. c4 {[%clk 0:02:55]}  e6 {[%clk 0:03:00]} 2. Nc3 {[%clk 0:02:53]}  d5 {[%clk 0:03:00]} 3. d4 {[%clk 0:02:52]}  Nf6 {[%clk 0:03:01]} 4. b3 {[%clk 0:02:52]}  c5 {[%clk 0:02:51]} 5. Nf3 {[%clk 0:02:48]}  cxd4 {[%clk 0:02:47]} 6. Nxd4 {[%clk 0:02:49]}  Bb4 {[%clk 0:02:46]} 7. Bd2 {[%clk 0:02:36]}  dxc4 {[%clk 0:02:41]} 8. Ndb5 {[%clk 0:02:32]}  a6 {[%clk 0:02:25]} 9. Na3 {[%clk 0:02:01]}  Bxa3 {[%clk 0:02:22]} 10. bxc4 {[%clk 0:02:02]}  Nc6 {[%clk 0:02:17]} 11. e3 {[%clk 0:01:55]}  O-O {[%clk 0:02:02]} 12. Be2 {[%clk 0:01:53]}  Qe7 {[%clk 0:01:55]} 13. O-O {[%clk 0:01:52]}  Rd8 {[%clk 0:01:55]} 14. Qe1 {[%clk 0:01:46]}  Bb4 {[%clk 0:01:50]} 15. Bf3 {[%clk 0:01:35]}  Ne5 {[%clk 0:01:46]} 16. Be2 {[%clk 0:01:24]}  Rxd2 {[%clk 0:01:17]} 17. Qxd2 {[%clk 0:01:22]}  Ne4 {[%clk 0:01:17]} 18. Qd4 {[%clk 0:01:16]}  Nxc3 {[%clk 0:01:15]} 19. Bh5 {[%clk 0:01:15]}  Nc6 {[%clk 0:00:47]} 20. Qd3 {[%clk 0:00:55]}  e5 {[%clk 0:00:42]} 21. a3 {[%clk 0:00:52]}  Ba5 {[%clk 0:00:40]} 22. Rac1 {[%clk 0:00:43]}  Qg5 {[%clk 0:00:40]} 23. Bf3 {[%clk 0:00:36]}  Bf5 {[%clk 0:00:36]} 24. e4 {[%clk 0:00:32]}  Rd8 {[%clk 0:00:36]} 25. Qc2 {[%clk 0:00:30]}  Be6 {[%clk 0:00:27]} 26. Qb3 {[%clk 0:00:21]}  Nd4 {[%clk 0:00:25]} 27. Rxc3 {[%clk 0:00:17]}  Nxb3 {[%clk 0:00:24]} 28. Rxb3 {[%clk 0:00:17]}  b6 {[%clk 0:00:23]} 29. h4 {[%clk 0:00:16]}  Qxh4 {[%clk 0:00:22]} 30. Rc1 {[%clk 0:00:16]}  g5 {[%clk 0:00:18]} 31. g3 {[%clk 0:00:15]}  Qh6 {[%clk 0:00:18]} 32. Rbb1 {[%clk 0:00:14]}  g4 {[%clk 0:00:18]} 33. Bg2 {[%clk 0:00:15]}  Rd2 {[%clk 0:00:17]} 34. Rd1 {[%clk 0:00:14]}  Rxd1+ {[%clk 0:00:15]} 35. Rxd1 {[%clk 0:00:15]}  Bxc4 {[%clk 0:00:16]} 36. Rd8+ {[%clk 0:00:15]}  Kg7 {[%clk 0:00:16]} 37. Rd1 {[%clk 0:00:13]}  Bb3 {[%clk 0:00:15]} 38. Rb1 {[%clk 0:00:13]}  Qd2 {[%clk 0:00:15]} 39. Bf1 {[%clk 0:00:12]}  Bc2 {[%clk 0:00:13]} 40. Rb2 {[%clk 0:00:12]}  Bc3 {[%clk 0:00:12]} 41. Ra2 {[%clk 0:00:10]}  Bd4 {[%clk 0:00:12]} 0-1

[Event "January 9 Late 2024"]
[Site "https://www.chess.com"]
[Date "2024.01.09"]
[Round "8"]
[White "Storn, Justin"]
[Black "Asish Panda"]
[Result "0-1"]
[Board "82"]
[TimeControl "180+1"]
[WhiteFideId "30922720"]
[BlackFideId "45012458"]
[WhiteElo "2443"]
[BlackElo "2576"]
[WhiteTeam "USA"]
[BlackTeam "IND"]
[WhiteClock "0:00:05"]
[BlackClock "0:00:05"]

1. g3 {[%clk 0:02:56]}  d5 {[%clk 0:02:58]} 2. Bg2 {[%clk 0:02:56]}  Nf6 {[%clk 0:02:59]} 3. Nf3 {[%clk 0:02:55]}  e6 {[%clk 0:02:59]} 4. d4 {[%clk 0:02:55]}  Be7 {[%clk 0:02:59]} 5. O-O {[%clk 0:02:55]}  O-O {[%clk 0:03:00]} 6. c4 {[%clk 0:02:55]}  dxc4 {[%clk 0:02:56]} 7. Qc2 {[%clk 0:02:55]}  a6 {[%clk 0:02:48]} 8. a4 {[%clk 0:02:55]}  Bd7 {[%clk 0:02:48]} 9. Qxc4 {[%clk 0:02:47]}  Bc6 {[%clk 0:02:47]} 10. Bg5 {[%clk 0:02:39]}  Bd5 {[%clk 0:02:41]} 11. Qc2 {[%clk 0:02:32]}  Be4 {[%clk 0:02:40]} 12. Qc1 {[%clk 0:02:32]}  Nc6 {[%clk 0:02:37]} 13. e3 {[%clk 0:02:26]}  Qd5 {[%clk 0:02:23]} 14. Nc3 {[%clk 0:02:17]}  Qf5 {[%clk 0:02:09]} 15. Bxf6 {[%clk 0:02:06]}  Bxf3 {[%clk 0:02:05]} 16. Bxe7 {[%clk 0:02:06]}  Nxe7 {[%clk 0:01:27]} 17. e4 {[%clk 0:02:05]}  Qh5 {[%clk 0:01:25]} 18. Qe3 {[%clk 0:02:02]}  Bxg2 {[%clk 0:01:24]} 19. Kxg2 {[%clk 0:02:03]}  Ng6 {[%clk 0:01:18]} 20. f4 {[%clk 0:01:57]}  Qg4 {[%clk 0:01:15]} 21. Kh1 {[%clk 0:01:56]}  Rad8 {[%clk 0:01:13]} 22. f5 {[%clk 0:01:45]}  exf5 {[%clk 0:01:02]} 23. Rxf5 {[%clk 0:01:46]}  Rfe8 {[%clk 0:00:55]} 24. Raf1 {[%clk 0:01:46]}  f6 {[%clk 0:00:50]} 25. Nd5 {[%clk 0:00:44]}  Qxe4+ {[%clk 0:00:29]} 26. Qxe4 {[%clk 0:00:45]}  Rxe4 {[%clk 0:00:30]} 27. Nxc7 {[%clk 0:00:19]}  Rdxd4 {[%clk 0:00:24]} 28. R5f2 {[%clk 0:00:20]}  Ne5 {[%clk 0:00:18]} 29. b3 {[%clk 0:00:16]}  Ng4 {[%clk 0:00:15]} 30. Rb2 {[%clk 0:00:16]}  h6 {[%clk 0:00:10]} 31. Rc1 {[%clk 0:00:15]}  Kh7 {[%clk 0:00:09]} 32. Na8 {[%clk 0:00:14]}  h5 {[%clk 0:00:07]} 33. Nb6 {[%clk 0:00:13]}  h4 {[%clk 0:00:07]} 34. gxh4 {[%clk 0:00:13]}  Ne5 {[%clk 0:00:07]} 35. Rf1 {[%clk 0:00:11]}  Rxh4 {[%clk 0:00:07]} 36. Rg2 {[%clk 0:00:10]}  Ng4 {[%clk 0:00:06]} 37. Kg1 {[%clk 0:00:09]}  Ne3 {[%clk 0:00:06]} 38. Nc4 {[%clk 0:00:09]}  Nxg2 {[%clk 0:00:05]} 39. Kxg2 {[%clk 0:00:09]}  b5 {[%clk 0:00:06]} 40. Ne3 {[%clk 0:00:08]}  Rd2+ {[%clk 0:00:05]} 41. Kg3 {[%clk 0:00:08]}  Rdxh2 {[%clk 0:00:06]} 42. axb5 {[%clk 0:00:08]}  R4h3+ {[%clk 0:00:05]} 43. Kf4 {[%clk 0:00:08]}  g5+ {[%clk 0:00:06]} 44. Ke4 {[%clk 0:00:08]}  axb5 {[%clk 0:00:05]} 45. Rf5 {[%clk 0:00:07]}  Re2 {[%clk 0:00:04]} 46. Rxb5 {[%clk 0:00:06]}  Rexe3+ {[%clk 0:00:04]} 47. Kf5 {[%clk 0:00:06]}  Re5+ {[%clk 0:00:04]} 48. Kg4 {[%clk 0:00:05]}  Rxb5 {[%clk 0:00:03]} 49. b4 {[%clk 0:00:05]}  Rxb4+ {[%clk 0:00:04]} 50. Kxh3 {[%clk 0:00:05]}  Rf4 {[%clk 0:00:04]} 51. Kg3 {[%clk 0:00:05]}  Kg6 {[%clk 0:00:05]} 0-1

[Event "January 9 Late 2024"]
[Site "https://www.chess.com"]
[Date "2024.01.09"]
[Round "8"]
[White "Sadovsky, Artem"]
[Black "Kornyukov, Alexey"]
[Result "1-0"]
[Board "85"]
[TimeControl "180+1"]
[WhiteFideId "4155840"]
[BlackFideId "4150457"]
[WhiteElo "2557"]
[BlackElo "2297"]
[WhiteTeam "FID"]
[BlackTeam "RUS"]
[WhiteClock "0:00:53"]
[BlackClock "0:00:00"]

1. Nf3 {[%clk 0:03:00]}  d5 {[%clk 0:02:58]} 2. e3 {[%clk 0:03:01]}  c5 {[%clk 0:02:56]} 3. b3 {[%clk 0:03:01]}  a6 {[%clk 0:02:56]} 4. Bb2 {[%clk 0:03:01]}  Nc6 {[%clk 0:02:56]} 5. Be2 {[%clk 0:03:02]}  d4 {[%clk 0:02:56]} 6. O-O {[%clk 0:03:03]}  g6 {[%clk 0:02:55]} 7. exd4 {[%clk 0:02:55]}  cxd4 {[%clk 0:02:53]} 8. Re1 {[%clk 0:02:55]}  Bg7 {[%clk 0:02:50]} 9. c3 {[%clk 0:02:44]}  Nh6 {[%clk 0:02:27]} 10. Na3 {[%clk 0:02:11]}  Nf5 {[%clk 0:02:12]} 11. Bd3 {[%clk 0:02:07]}  O-O {[%clk 0:02:08]} 12. Nc2 {[%clk 0:02:07]}  e5 {[%clk 0:01:57]} 13. Be4 {[%clk 0:02:04]}  dxc3 {[%clk 0:01:17]} 14. dxc3 {[%clk 0:02:03]}  Qc7 {[%clk 0:01:16]} 15. Bxc6 {[%clk 0:01:50]}  bxc6 {[%clk 0:01:16]} 16. Qe2 {[%clk 0:01:41]}  Re8 {[%clk 0:01:11]} 17. c4 {[%clk 0:01:39]}  e4 {[%clk 0:01:01]} 18. Bxg7 {[%clk 0:01:40]}  Kxg7 {[%clk 0:00:59]} 19. Nfd4 {[%clk 0:01:38]}  c5 {[%clk 0:00:55]} 20. Nxf5+ {[%clk 0:01:38]}  Bxf5 {[%clk 0:00:56]} 21. Ne3 {[%clk 0:01:38]}  Be6 {[%clk 0:00:38]} 22. Qb2+ {[%clk 0:01:38]}  Kg8 {[%clk 0:00:37]} 23. Rad1 {[%clk 0:01:34]}  f5 {[%clk 0:00:34]} 24. Qf6 {[%clk 0:01:23]}  Rad8 {[%clk 0:00:27]} 25. h4 {[%clk 0:01:07]}  f4 {[%clk 0:00:24]} 26. Rxd8 {[%clk 0:01:02]}  Qxd8 {[%clk 0:00:23]} 27. Qxf4 {[%clk 0:01:03]}  Qd2 {[%clk 0:00:13]} 28. Rd1 {[%clk 0:00:58]}  Qxa2 {[%clk 0:00:09]} 29. h5 {[%clk 0:00:58]}  Rf8 {[%clk 0:00:09]} 30. Qg3 {[%clk 0:00:54]}  Rf6 {[%clk 0:00:03]} 31. h6 {[%clk 0:00:53]}  Qxb3 {[%clk 0:00:00]} 32. Rd8+ {[%clk 0:00:53]} 1-0

[Event "January 9 Late 2024"]
[Site "https://www.chess.com"]
[Date "2024.01.09"]
[Round "8"]
[White "Brodsky, David"]
[Black "Albuquerque Junior,Wellington S."]
[Result "1-0"]
[Board "86"]
[TimeControl "180+1"]
[WhiteFideId "2073250"]
[BlackFideId "2151480"]
[WhiteElo "2813"]
[BlackElo "2375"]
[WhiteTeam "USA"]
[BlackTeam "BRA"]
[WhiteClock "0:00:32"]
[BlackClock "0:00:00"]

1. d4 {[%clk 0:03:00]}  Nf6 {[%clk 0:02:59]} 2. Nf3 {[%clk 0:03:00]}  c5 {[%clk 0:02:57]} 3. d5 {[%clk 0:02:59]}  g6 {[%clk 0:02:57]} 4. Nc3 {[%clk 0:02:56]}  d6 {[%clk 0:02:58]} 5. e4 {[%clk 0:02:56]}  Bg7 {[%clk 0:02:59]} 6. Bb5+ {[%clk 0:02:56]}  Nfd7 {[%clk 0:02:59]} 7. a4 {[%clk 0:02:56]}  O-O {[%clk 0:02:59]} 8. O-O {[%clk 0:02:55]}  Na6 {[%clk 0:03:00]} 9. Re1 {[%clk 0:02:53]}  Nc7 {[%clk 0:03:01]} 10. Bf1 {[%clk 0:02:52]}  Rb8 {[%clk 0:03:01]} 11. a5 {[%clk 0:02:46]}  b5 {[%clk 0:03:01]} 12. axb6 {[%clk 0:02:45]}  axb6 {[%clk 0:03:02]} 13. Nb5 {[%clk 0:02:43]}  Nxb5 {[%clk 0:02:57]} 14. Bxb5 {[%clk 0:02:44]}  h6 {[%clk 0:02:53]} 15. c3 {[%clk 0:02:41]}  Kh7 {[%clk 0:02:50]} 16. Nd2 {[%clk 0:02:36]}  Nf6 {[%clk 0:02:48]} 17. Ra7 {[%clk 0:02:20]}  Rb7 {[%clk 0:02:17]} 18. Rxb7 {[%clk 0:02:15]}  Bxb7 {[%clk 0:02:18]} 19. Nc4 {[%clk 0:02:16]}  Qc7 {[%clk 0:02:15]} 20. Bf4 {[%clk 0:02:12]}  Nh5 {[%clk 0:02:05]} 21. Be3 {[%clk 0:02:00]}  Rb8 {[%clk 0:01:56]} 22. Qf3 {[%clk 0:01:56]}  Nf6 {[%clk 0:01:45]} 23. h3 {[%clk 0:01:46]}  Bc8 {[%clk 0:01:43]} 24. Bf4 {[%clk 0:01:44]}  Bd7 {[%clk 0:01:37]} 25. Na3 {[%clk 0:01:21]}  Bxb5 {[%clk 0:00:38]} 26. Nxb5 {[%clk 0:01:22]}  Qd7 {[%clk 0:00:37]} 27. c4 {[%clk 0:01:21]}  Ra8 {[%clk 0:00:36]} 28. e5 {[%clk 0:01:14]}  dxe5 {[%clk 0:00:28]} 29. Bxe5 {[%clk 0:01:15]}  Kg8 {[%clk 0:00:22]} 30. d6 {[%clk 0:01:12]}  Re8 {[%clk 0:00:08]} 31. Ra1 {[%clk 0:01:00]}  Nh7 {[%clk 0:00:02]} 32. Bxg7 {[%clk 0:00:45]}  Kxg7 {[%clk 0:00:03]} 33. Ra7 {[%clk 0:00:45]}  Qe6 {[%clk 0:00:03]} 34. Qc3+ {[%clk 0:00:41]}  Qf6 {[%clk 0:00:02]} 35. dxe7 {[%clk 0:00:36]}  Qxc3 {[%clk 0:00:00]} 36. bxc3 {[%clk 0:00:32]} 1-0